bitfinex/quotes_ETHUSD_20260304
["timestamp","ask_amount","ask_price","bid_price","bid_amount"]
[1772662498942,3.9243689,2158.0,2157.5,2.57167689]
[1772662499141,1.15852111,2158.0,2157.5,2.57167689]
[1772662499525,2.76547045,2157.9,2157.5,2.57167689]
[1772662500350,2.64188966,2157.8,2157.5,0.001]
[1772662500921,2.76580869,2157.7,2157.5,0.001]
[1772662502238,2.64188966,2157.8,2157.5,0.001]
[1772662502444,1.15863034,2157.8,2157.5,0.001]
[1772662502649,1.15850785,2158.0,2157.5,2.57167689]
[1772662502957,2.21271924,2158.7,2157.6,2.57067689]
[1772662503137,2.76174233,2158.6,2157.6,2.57067689]
[1772662503335,2.64388966,2158.8,2157.6,2.57067689]
[1772662503528,0.002,2158.8,2157.6,2.57067689]
[1772662503722,3.80194115,2158.8,2157.6,2.57067689]
[1772662503928,1.16005149,2158.8,2157.7,2.57067689]
[1772662504240,1.15801866,2158.9,2157.7,2.57067689]
[1772662504555,0.002,2159.0,2157.9,2.57067689]
[1772662505753,2.64388966,2159.0,2158.0,2.57067689]
[1772662506253,2.64388966,2159.0,2157.6,2.57067689]
[1772662506454,2.64188966,2158.7,2157.6,2.57067689]
[1772662506656,2.64188966,2158.5,2157.6,3.72933031]
[1772662506850,2.64188966,2158.5,2157.7,2.57067689]
[1772662507065,2.64188966,2158.5,2157.5,0.001]
[1772662507356,2.64188966,2158.3,2157.7,0.001]
[1772662507528,2.64188966,2158.2,2157.7,0.001]
[1772662508023,2.64188966,2158.1,2157.7,0.001]
[1772662508646,2.64188966,2158.1,2157.2,0.001]
[1772662508647,2.64188966,2157.9,2157.2,0.001]
[1772662509549,2.64188966,2157.7,2157.2,0.001]
[1772662510756,1.15869484,2157.6,2157.2,0.001]
[1772662511430,1.15869484,2157.6,2156.4,1.67]
[1772662511431,2.64188966,2157.5,2156.4,1.67]
[1772662511630,2.64188966,2157.5,2156.5,2.57067689]
[1772662511956,1.15869484,2157.6,2156.5,2.57067689]
[1772662513852,2.64188966,2157.6,2156.7,2.57067689]
[1772662515561,2.64188966,2157.6,2156.7,2.55067689]
[1772662515747,4.63413601,2157.9,2156.7,2.55067689]
[1772662515953,4.63438789,2157.8,2156.9,2.57067689]
[1772662516373,1.15848007,2158.0,2156.9,2.57067689]
[1772662517855,4.63372151,2158.1,2157.1,2.57067689]
[1772662518675,1.15842639,2158.1,2157.1,2.57067689]
[1772662519745,1.15842639,2158.1,2157.1,2.57167689]
[1772662519945,4.63356878,2158.2,2157.3,2.39518962]
[1772662520569,2.41904488,2158.1,2157.3,2.39518962]
[1772662522148,1.15848007,2158.0,2157.4,3.55399188]
[1772662523995,1.15837549,2158.2,2157.5,2.39518962]
[1772662524149,4.63289414,2158.5,2157.6,1.15869484]
[1772662524491,4.63289414,2158.5,2157.7,2.39518962]
[1772662524847,2.41904488,2158.4,2157.3,2.39518962]
[1772662526353,2.17600792,2158.2,2157.3,3.55403656]
[1772662526551,2.17600792,2158.2,2157.1,0.001]
[1772662526552,2.17600792,2158.2,2157.1,2.26831693]
[1772662526794,2.17600792,2158.2,2157.2,2.26731693]
[1772662529788,2.17600792,2158.0,2157.2,2.26731693]
[1772662532068,7.48837271,2158.3,2157.3,2.26731693]
[1772662532272,1.15824158,2158.5,2157.3,2.26731693]
[1772662532882,0.002,2158.1,2157.3,2.26731693]
[1772662534288,0.002,2158.1,2157.5,2.26731693]
[1772662534820,0.002,2158.4,2157.7,2.26731693]
[1772662537297,0.002,2158.4,2157.7,1.15859078]
[1772662537488,0.002,2158.4,2157.8,2.26731693]
[1772662539583,0.002,2158.4,2157.7,2.26731693]
[1772662540774,2.17800792,2158.4,2157.7,2.26731693]
[1772662541387,2.17800792,2158.4,2157.6,2.26731693]
[1772662542197,1.15831904,2158.3,2157.7,2.26731693]
[1772662544984,3.33432696,2158.3,2157.7,2.26731693]
[1772662546305,0.002,2158.1,2157.7,2.26731693]
[1772662546682,0.002,2158.1,2157.7,3.42595007]
[1772662547002,0.002,2158.1,2157.7,2.26731693]
[1772662547702,0.002,2158.1,2157.7,3.42595797]
[1772662549297,0.002,2158.1,2157.7,2.26731693]
[1772662550308,0.002,2158.1,2157.4,0.001]
[1772662550309,1.98491012,2158.0,2157.4,0.001]
[1772662551393,3.14344387,2157.9,2157.4,0.001]
[1772662551591,1.16047755,2158.1,2157.5,1.95069887]
[1772662551983,3.14538767,2158.1,2157.5,1.95069887]
[1772662552484,0.002,2158.1,2157.5,1.95069887]
[1772662553308,0.002,2158.1,2157.6,1.15869484]
[1772662553494,0.002,2158.1,2157.7,1.97290146]
[1772662554391,0.002,2158.1,2157.6,1.15869484]
[1772662554392,1.98691012,2158.1,2157.5,3.10100095]
[1772662554606,1.98691012,2158.1,2157.5,1.15871797]
[1772662554985,1.98691012,2158.1,2157.5,3.10100095]
[1772662555911,1.15848007,2158.0,2157.5,3.10100095]
[1772662556410,1.98491012,2158.0,2157.5,3.10100095]
[1772662556808,1.98491012,2158.0,2157.4,1.1597544]
[1772662557181,1.98491012,2158.0,2157.4,0.001]
[1772662557403,1.98491012,2158.0,2157.1,3.07301219]
[1772662557636,1.98491012,2157.9,2157.1,3.07301219]
[1772662558204,1.98491012,2157.7,2157.1,3.07301219]
[1772662558986,1.98491012,2157.7,2157.3,0.001]
[1772662559384,1.98491012,2157.7,2157.3,0.001]
[1772662560321,1.15869484,2157.6,2157.3,0.001]
[1772662560517,3.14360496,2157.6,2157.3,0.001]
[1772662560683,3.14360496,2157.6,2157.1,0.001]
[1772662560684,1.98491012,2157.5,2157.1,0.001]
[1772662561032,1.98491012,2157.5,2157.1,1.15996241]
[1772662561233,0.002,2157.9,2157.2,1.86696815]
[1772662562410,0.002,2157.9,2157.4,1.84426726]
[1772662564212,1.98691012,2157.9,2157.4,1.84426726]
[1772662564515,3.14349757,2157.8,2157.3,1.15885597]
[1772662565327,1.98491012,2157.8,2157.3,1.15885597]
[1772662567313,3.14350094,2157.8,2157.3,1.15885597]
[1772662567728,3.14350641,2157.8,2157.3,1.15885597]
[1772662568528,1.98491012,2157.8,2157.3,1.15885597]
[1772662568736,3.14350954,2157.8,2157.3,1.15885597]
[1772662569234,3.14350954,2157.8,2157.3,1.77733361]
[1772662569531,4.63614069,2157.9,2157.3,1.77733361]
[1772662569532,0.002,2157.9,2157.3,1.77733361]
[1772662571233,0.002,2157.9,2157.4,1.15880226]
[1772662571615,0.002,2157.9,2157.4,2.90105895]
[1772662572527,1.9129761,2157.9,2157.4,2.90105895]
[1772662572728,1.9129761,2157.9,2157.4,2.90205895]
[1772662572934,0.002,2157.7,2157.4,2.90205895]
[1772662574211,0.002,2157.7,2157.5,1.72069986]
[1772662574406,0.002,2157.9,2157.6,1.71869986]
[1772662575832,0.002,2157.9,2157.7,1.15864114]
[1772662577043,0.002,2157.9,2157.7,2.84542392]
[1772662577447,0.002,2157.9,2157.8,1.68678278]
[1772662578119,0.002,2157.9,2157.8,2.84537023]
[1772662578711,0.002,2158.1,2157.9,1.66507983]
[1772662579138,0.002,2158.3,2157.9,1.66507983]
[1772662581730,0.002,2158.3,2158.0,1.15848007]
[1772662584345,0.002,2158.3,2158.0,2.77300288]
[1772662584542,0.002,2158.3,2158.1,1.60450295]
[1772662586030,0.002,2158.3,2158.2,2.75119269]
[1772662586231,1.82792852,2158.3,2157.9,2.75231405]
[1772662586539,0.002,2158.1,2157.9,2.75231405]
[1772662587147,0.002,2158.1,2157.9,1.15949407]
[1772662588234,0.002,2158.1,2157.9,0.001]
[1772662589528,1.82792852,2158.1,2157.9,0.001]
[1772662589752,1.82792852,2158.1,2157.6,0.001]
[1772662590246,1.82792852,2158.1,2157.4,0.001]
[1772662590247,1.82592852,2157.9,2157.4,0.001]
[1772662590622,1.82592852,2157.8,2157.0,0.001]
[1772662590946,1.82592852,2157.7,2157.0,0.001]
[1772662592436,1.82592852,2157.5,2157.0,0.001]
[1772662594747,1.15880226,2157.4,2157.0,0.001]
[1772662594954,0.02806841,2157.7,2157.1,1.50709956]
[1772662596766,0.02806841,2157.7,2157.2,1.15890969]
[1772662596932,0.02806841,2157.7,2157.3,1.48734113]
[1772662597933,0.02806841,2157.7,2157.3,1.48834113]
[1772662598130,0.002,2157.5,2157.3,1.48834113]
[1772662599058,0.002,2157.5,2157.4,1.15880226]
[1772662599455,0.002,2157.5,2157.3,1.48834113]
[1772662599660,1.82792852,2157.5,2157.3,0.001]
[1772662601037,0.002,2157.5,2157.3,1.15985499]
[1772662601872,1.82792852,2157.5,2157.3,0.001]
[1772662602354,1.82792852,2157.5,2157.1,0.001]
[1772662602939,1.82592852,2157.3,2157.1,0.001]
[1772662605343,2.9848344,2157.3,2157.1,0.001]
[1772662606165,1.82592852,2157.3,2157.1,0.001]
[1772662606975,2.98478598,2157.3,2157.1,0.001]
[1772662607773,1.82592852,2157.2,2157.1,0.001]
[1772662610276,2.98483821,2157.2,2157.1,0.001]
[1772662610472,1.15890969,2157.2,2157.1,0.001]
[1772662610662,1.15890078,2157.3,2157.1,0.001]
[1772662612083,1.16090078,2157.3,2157.1,0.001]
[1772662613865,2.85838128,2157.3,2157.1,0.001]
[1772662614480,1.6974805,2157.2,2157.1,0.001]
[1772662616292,2.85639019,2157.2,2157.1,0.001]
[1772662620757,0.002,2157.5,2157.2,1.27181117]
[1772662620996,0.03006841,2157.7,2157.2,1.27181117]
[1772662621368,0.03006841,2157.7,2157.3,1.27181117]
[1772662622275,0.03006841,2157.7,2157.4,1.15880226]
[1772662622476,0.03006841,2157.7,2157.5,1.26352284]
[1772662623291,0.03006841,2157.7,2157.1,2.41504083]
[1772662623292,1.6974805,2157.6,2157.1,2.41504083]
[1772662624167,1.6974805,2157.6,2157.1,1.25608775]
[1772662624369,1.15874855,2157.5,2157.1,1.25608775]
[1772662625082,1.15874855,2157.5,2157.3,0.001]
[1772662625392,1.16074855,2157.5,2157.3,0.001]
[1772662625691,2.85822905,2157.5,2157.3,0.001]
[1772662626261,1.6994805,2157.5,2157.3,0.001]
[1772662626763,0.002,2157.5,2157.3,0.001]
[1772662628797,1.18874126,2157.7,2157.3,1.20643253]
[1772662630492,1.18874126,2157.7,2157.3,0.001]
[1772662630493,2.88622176,2157.7,2157.3,0.001]
[1772662633400,2.88622176,2157.7,2157.3,1.17217162]
[1772662636003,2.88622176,2157.7,2157.3,2.33099402]
[1772662636380,2.88622176,2157.7,2157.3,1.17217162]
[1772662637185,1.6974805,2157.6,2157.3,0.001]
[1772662637379,1.6994805,2157.5,2157.3,0.001]
[1772662638303,2.8582546,2157.5,2157.3,0.001]
[1772662639000,1.63600599,2157.4,2157.0,0.001]
[1772662642499,1.63600599,2157.2,2157.0,0.001]
[1772662645517,1.15896342,2157.1,2157.0,0.001]
[1772662645912,1.54689503,2157.0,2156.4,1.07130511]
[1772662646106,1.54689503,2157.0,2156.7,0.001]
[1772662646902,1.15896342,2157.1,2156.7,1.06485863]
[1772662647104,2.70585845,2157.1,2156.7,1.06485863]
[1772662647424,1.54689503,2157.0,2156.7,0.001]
[1772662648914,1.54689503,2157.0,2156.9,0.001]
[1772662650102,1.54689503,2157.4,2157.0,1.04147107]
[1772662650828,1.16075435,2157.5,2157.1,1.03505414]
[1772662650997,0.002,2157.5,2157.1,1.03505414]
[1772662652396,1.54889503,2157.5,2157.1,0.001]
[1772662652592,1.54889503,2157.5,2156.9,0.001]
[1772662652793,1.54889503,2157.5,2156.6,0.001]
[1772662653624,1.54889503,2157.5,2156.6,1.16022621]
[1772662654012,1.54889503,2157.5,2156.7,1.01291184]
[1772662654409,2.70569729,2157.4,2156.8,1.01291184]
[1772662655211,1.54689503,2157.3,2156.8,1.01291184]
[1772662656333,1.15890969,2157.2,2156.8,1.01291184]
[1772662656928,1.15890969,2157.2,2156.8,2.17203092]
[1772662657108,2.70580472,2157.2,2156.7,1.15914521]
[1772662657430,1.54689503,2157.2,2156.8,0.9836218]
[1772662658636,2.70583566,2157.2,2156.8,2.14274621]
[1772662660739,2.70583566,2157.2,2157.0,0.001]
[1772662673045,1.55237252,2157.1,2157.0,0.001]
[1772662673343,1.55237252,2157.1,2156.8,0.001]
[1772662674718,2.71138967,2157.0,2156.8,0.001]
[1772662675225,1.55237252,2157.0,2156.6,0.001]
[1772662675532,1.55437252,2157.0,2156.6,0.001]
[1772662677045,1.55237252,2156.8,2156.6,0.001]
[1772662679223,2.71152334,2156.8,2156.6,0.001]
[1772662681346,2.71341076,2157.0,2156.6,0.82395196]
[1772662682850,1.55237252,2156.9,2156.6,0.82395196]
[1772662683535,2.71147302,2156.9,2156.6,0.82395196]
[1772662683863,2.71147302,2156.9,2155.7,1.1597161]
[1772662683864,1.55237252,2156.7,2155.7,1.1597161]
[1772662684071,1.55237252,2156.7,2155.7,1.96257928]
[1772662684273,1.55237252,2156.7,2155.8,0.80286318]
[1772662684828,1.55237252,2156.7,2155.6,1.2306827]
[1772662685037,1.55237252,2156.3,2155.6,1e-08]
[1772662685270,1.55237252,2156.3,2155.3,0.79623258]
[1772662685271,1.55237252,2156.1,2155.3,0.79623258]
[1772662685430,1.55237252,2155.9,2155.0,1.16006043]
[1772662685744,4.48592725,2156.0,2155.0,0.78959271]
[1772662685933,1.55237252,2155.9,2155.0,0.78959271]
[1772662686128,2.71190669,2156.1,2155.0,0.78959271]
[1772662686367,1.55237252,2156.1,2155.2,0.78959271]
[1772662686538,4.48578931,2156.3,2155.2,0.78959271]
[1772662687129,3.32637252,2156.3,2155.2,0.78959271]
[1772662687468,4.48576939,2156.3,2155.2,0.78959271]
[1772662687654,4.48576939,2156.3,2155.4,0.77844917]
[1772662687655,3.32637252,2156.3,2155.4,0.77844917]
[1772662688253,4.48577511,2156.3,2155.4,0.77844917]
[1772662688961,4.48576646,2156.3,2155.6,0.77185975]
[1772662689158,3.32637252,2156.3,2155.6,0.77185975]
[1772662689456,1.55237252,2156.2,2155.6,0.77185975]
[1772662689666,1.55237252,2156.4,2155.8,0.76528876]
[1772662691846,1.55237252,2156.4,2155.9,1.91181026]
[1772662692266,1.55237252,2156.4,2156.0,0.75220175]
[1772662692643,1.55237252,2156.6,2156.0,0.75220175]
[1772662693462,1.55437252,2156.8,2156.0,0.75220175]
[1772662693859,1.55437252,2156.8,2156.2,0.73918751]
[1772662696168,1.55437252,2156.8,2156.3,1.1593934]
[1772662696762,1.55437252,2156.8,2156.3,1.87919468]
[1772662697470,1.55237252,2156.7,2156.3,1.1593934]
[1772662699565,1.55237252,2156.7,2156.3,1.85976563]
[1772662702473,0.002,2156.6,2156.3,1.85976563]
[1772662704779,1.46404967,2156.6,2156.3,1.85976563]
[1772662705969,1.46404967,2156.6,2156.2,0.6622198]
[1772662706267,1.37669157,2156.5,2156.2,0.6622198]
[1772662706877,1.37669157,2156.5,2156.0,0.65595484]
[1772662707076,1.37669157,2156.5,2155.8,0.001]
[1772662707578,1.37669157,2156.5,2155.9,0.64970694]
[1772662708388,1.37669157,2156.3,2155.9,1.80931206]
[1772662711886,1.37669157,2156.2,2155.8,0.001]
[1772662712180,1.37669157,2156.2,2155.8,1.16064865]
[1772662712348,1.37669157,2156.4,2155.9,0.62488438]
[1772662713361,1.37669157,2156.4,2155.8,1.77936931]
[1772662713562,1.37669157,2156.4,2155.8,0.001]
[1772662713881,1.37669157,2156.4,2155.5,0.001]
[1772662713882,1.37669157,2156.2,2155.5,0.001]
[1772662714689,1.37669157,2156.2,2155.6,0.60747248]
[1772662715059,4.63757362,2156.4,2155.6,0.60747248]
[1772662715060,1.37669157,2156.4,2155.6,0.60747248]
[1772662715565,2.53603298,2156.4,2155.6,0.60747248]
[1772662715866,1.37669157,2156.4,2155.8,0.6023584]
[1772662716062,1.37669157,2156.4,2155.9,1.15960851]
[1772662716768,2.53603391,2156.4,2155.9,1.75486927]
[1772662717078,1.37669157,2156.4,2155.9,1.75486927]
[1772662719771,2.53793206,2156.6,2156.0,0.57702457]
[1772662719965,1.37869157,2156.6,2156.0,0.57702457]
[1772662720167,2.53792409,2156.6,2156.0,0.57702457]
[1772662720375,1.37869157,2156.6,2156.0,0.57702457]
[1772662721252,2.5379298,2156.6,2156.1,1.7304522]
[1772662721761,1.37869157,2156.6,2156.1,1.7304522]
[1772662721957,1.37869157,2156.6,2156.2,0.56489451]
[1772662722176,2.53792542,2156.6,2156.2,0.56489451]
[1772662722583,1.37869157,2156.6,2156.2,0.56489451]
[1772662722765,1.37669157,2156.5,2156.0,1.71836987]
[1772662722965,1.37669157,2156.5,2156.0,1.15951558]
[1772662723286,2.53598832,2156.5,2155.9,5.19716795]
[1772662723458,2.53598832,2156.5,2156.0,0.55283052]
[1772662723785,1.37669157,2156.4,2156.0,0.55283052]
[1772662724189,1.37669157,2156.4,2155.9,4.63831366]
[1772662724673,1.37669157,2156.4,2155.8,3.48544846]
[1772662724986,1.37669157,2156.4,2155.9,0.54682312]
[1772662726562,1.37669157,2156.4,2156.0,1.69441192]
[1772662726764,1.37869157,2156.6,2156.1,0.53485719]
[1772662727274,2.53792731,2156.6,2156.1,0.53485719]
[1772662727692,1.37669157,2156.5,2156.1,0.53485719]
[1772662728693,0.002,2156.2,2156.1,1.69434043]
[1772662730872,0.002,2156.4,2156.2,0.50894422]
[1772662731488,0.002,2156.6,2156.2,0.50311347]
[1772662731790,1.40144234,2156.6,2156.2,0.50311347]
[1772662732892,1.40144234,2156.6,2156.3,1.1593934]
[1772662733591,0.002,2156.6,2156.4,0.49143401]
[1772662733771,1.39944234,2156.5,2156.0,1.65194461]
[1772662733971,1.39944234,2156.5,2156.0,0.001]
[1772662735068,1.39944234,2156.3,2156.0,0.001]
[1772662735493,1.39944234,2156.3,2155.8,0.001]
[1772662736581,1.39944234,2156.3,2155.3,1.15993133]
[1772662737165,1.39944234,2156.1,2155.3,1.15993133]
[1772662739193,1.39944234,2155.9,2155.3,1.62236659]
[1772662739764,1.39944234,2156.1,2155.4,0.45667196]
[1772662740094,2.55895748,2156.1,2155.4,0.45667196]
[1772662740291,1.39944234,2156.1,2155.4,0.45667196]
[1772662740888,1.39944234,2156.4,2155.6,0.45092392]
[1772662741091,1.39944234,2156.4,2155.8,0.45092392]
[1772662741278,1.39944234,2156.4,2156.0,1.15955473]
[1772662741595,1.39944234,2156.4,2156.1,0.01204392]
[1772662742006,2.55878527,2156.4,2156.1,0.01204392]
[1772662742302,1.39944234,2156.3,2156.1,0.01204392]
[1772662742673,1.39944234,2156.5,2156.0,1.16055473]
[1772662743202,0.002,2156.2,2156.0,1.16055473]
[1772662743494,0.002,2156.2,2156.0,0.001]
[1772662743982,1.40144234,2156.2,2156.0,0.001]
[1772662744706,1.40144234,2156.2,2155.8,0.001]
[1772662744909,1.40144234,2156.2,2155.8,1.16065939]
[1772662745203,2.56090301,2156.2,2155.8,0.001]
[1772662745401,1.39944234,2156.1,2155.8,0.001]
[1772662746100,0.002,2156.2,2155.8,0.42344161]
[1772662748012,0.002,2156.2,2155.9,1.15960851]
[1772662748676,0.002,2156.2,2155.8,1.58306736]
[1772662748886,1.40144234,2156.2,2155.8,1.16062575]
[1772662749495,0.002,2156.2,2155.8,1.56613861]
[1772662751316,1.40144234,2156.4,2155.9,0.39230082]
[1772662751317,0.002,2156.4,2155.9,0.39230082]
[1772662754688,0.002,2156.4,2156.0,1.15955473]
[1772662756725,0.002,2156.4,2156.0,0.35915052]
[1772662756906,0.002,2156.4,2156.1,0.001]
[1772662757108,0.002,2156.2,2156.1,0.001]
[1772662759325,0.002,2156.2,2156.1,1.16050095]
[1772662761428,1.32468214,2156.2,2155.9,0.001]
[1772662761602,0.002,2156.2,2155.9,0.33312167]
[1772662761798,0.00063718,2156.2,2155.9,0.33312167]
[1772662763339,0.002,2156.6,2156.1,1.26975094]
[1772662763624,0.002,2156.6,2156.2,2.42919811]
[1772662765137,0.002,2156.6,2156.3,1.26975094]
[1772662765820,0.002,2156.6,2156.4,2.40411492]
[1772662766336,0.00070797,2156.6,2156.4,2.40411492]
[1772662769306,0.00070797,2156.6,2156.4,1.15933964]
[1772662769538,1.24204018,2156.6,2155.8,0.001]
[1772662769840,1.24204018,2156.6,2155.8,1.774]
[1772662770147,1.24204018,2156.6,2155.8,0.001]
[1772662770434,1.24133221,2156.4,2155.8,0.001]
[1772662771551,1.24333221,2156.4,2155.8,0.001]
[1772662771841,1.24333221,2156.4,2156.0,0.001]
[1772662772611,2.40072561,2156.3,2156.0,0.001]
[1772662774215,1.24133221,2156.2,2156.0,0.001]
[1772662775431,1.24333221,2156.4,2156.0,0.001]
[1772662776357,0.002,2156.4,2156.0,1.24577528]
[1772662777732,0.002,2156.4,2156.1,2.40427623]
[1772662782545,0.002,2156.4,2156.1,1.15950095]
[1772662783246,1.24333221,2156.4,2156.1,1.15950095]
[1772662784332,0.002,2156.2,2156.1,1.15950095]
[1772662791158,0.00070797,2156.6,2156.1,1.15950095]
[1772662791359,0.00070797,2156.6,2156.3,1.2815811]
[1772662794359,0.00070797,2156.6,2156.4,1.15933964]
[1772662794538,0.00070797,2156.6,2156.4,2.44092074]
[1772662795462,1.34318216,2156.6,2156.3,1.788]
[1772662796547,1.34247419,2156.4,2156.3,1.788]
[1772662797528,1.34247419,2156.4,2156.3,1.789]
[1772662797931,0.002,2156.4,2156.3,1.789]
[1772662798666,0.002,2156.4,2156.3,2.9483934]
[1772662799667,0.002,2156.4,2156.3,1.789]
[1772662799848,0.002,2156.4,2156.3,2.9483934]
[1772662800370,0.002,2156.4,2156.3,1.789]
[1772662800965,0.002,2156.4,2156.3,2.9483934]
[1772662801549,0.00070797,2156.6,2156.4,1.2815811]
[1772662802848,0.00070797,2156.6,2156.5,1.15928587]
[1772662804178,0.00070797,2156.6,2156.5,2.44086697]
[1772662808074,0.002,2156.9,2156.6,1.2815811]
[1772662808270,1.34447419,2157.0,2156.6,1.2815811]
[1772662808472,1.34447419,2157.0,2156.7,3.0765811]
[1772662810252,1.34447419,2157.0,2156.7,4.23570736]
[1772662810450,0.002,2156.9,2156.7,4.23570736]
[1772662818253,1.34447419,2156.9,2156.7,1.795]
[1772662818591,1.34447419,2156.9,2156.3,1.801]
[1772662819457,1.39037769,2156.7,2156.3,1.801]
[1772662820359,1.39037769,2156.7,2156.3,0.001]
[1772662821668,1.15923212,2156.6,2156.3,0.001]
[1772662821874,1.39037769,2156.5,2156.3,0.001]
[1772662824989,1.39037769,2156.4,2156.3,0.001]
[1772662825488,1.39037769,2156.4,2156.1,0.001]
[1772662825880,1.15937943,2156.4,2156.1,0.001]
[1772662826187,1.39518974,2156.3,2156.1,0.001]
[1772662828583,1.39518974,2156.2,2156.1,0.001]
[1772662830783,1.39518974,2156.1,2155.8,1.804]
[1772662832015,1.39518974,2156.1,2155.8,0.001]
[1772662832808,1.39518974,2155.9,2155.8,0.001]
[1772662837502,2.55479825,2155.9,2155.8,0.001]
[1772662837701,1.39518974,2155.9,2155.8,0.001]
[1772662838094,1.39518974,2156.1,2155.8,0.001]
[1772662839517,2.55469208,2156.1,2155.8,0.001]
[1772662839682,1.39518974,2156.0,2155.8,0.001]
[1772662842098,2.55475334,2156.0,2155.8,0.001]
[1772662844826,1.39518974,2155.9,2155.8,0.001]
[1772662846201,2.55679825,2155.9,2155.8,0.001]
[1772662846899,1.39518974,2155.8,2155.5,0.001]
[1772662850453,1.27993246,2155.7,2155.5,0.001]
[1772662854542,1.1597699,2155.6,2155.1,1.16003897]
[1772662854710,1.1597699,2155.6,2155.0,4.64035005]
[1772662854711,1.27993246,2155.5,2155.0,1.34910525]
[1772662855627,1.27993246,2155.4,2155.0,1.16008543]
[1772662855929,1.27993246,2155.4,2155.1,1.34910525]
[1772662856233,2.43972619,2155.6,2155.1,1.34910525]
[1772662856536,1.27993246,2155.5,2155.1,1.34910525]
[1772662858010,1.27993246,2155.5,2155.1,2.5091126]
[1772662858934,1.27993246,2155.5,2155.2,0.001]
[1772662859627,2.43975684,2155.5,2155.2,0.001]
[1772662859832,1.27993246,2155.4,2155.2,0.001]
[1772662861827,0.002,2155.7,2155.4,1.34910525]
[1772662862027,1.28193246,2155.7,2155.2,2.51004611]
[1772662864040,1.28193246,2155.7,2155.3,1.34910525]
[1772662864641,0.002,2155.7,2155.3,1.34910525]
[1772662864850,0.002,2155.9,2155.3,1.34910525]
[1772662866107,0.002,2155.9,2155.5,1.34910525]
[1772662866318,1.28193246,2155.9,2155.6,1.804]
[1772662866516,1.28193246,2155.9,2155.2,2.51004713]
[1772662866716,1.28193246,2155.9,2155.2,4.31408501]
[1772662867238,1.28193246,2155.9,2155.2,2.96497976]
[1772662868119,1.27993246,2155.7,2155.2,0.001]
[1772662870137,2.43970236,2155.6,2155.2,0.001]
[1772662870344,1.27993246,2155.5,2155.2,0.001]
[1772662870547,1.27993246,2155.5,2155.4,0.001]
[1772662870850,1.28193246,2155.5,2155.4,0.001]
[1772662871324,0.002,2155.5,2155.4,1.35010525]
[1772662872632,0.002,2155.5,2155.4,0.001]
[1772662876738,1.28193246,2155.5,2155.4,0.001]
[1772662879422,0.002,2155.5,2155.4,0.001]
[1772662881949,1.37084542,2155.5,2155.4,0.001]
[1772662893954,2.53066912,2155.5,2155.4,0.001]
[1772662894248,1.37084542,2155.5,2155.4,0.001]
[1772662895436,2.53066912,2155.5,2155.4,0.001]
[1772662895838,1.37084542,2155.5,2155.4,0.001]
[1772662899152,1.37084542,2155.5,2155.2,1.16097885]
[1772662902457,0.002,2155.5,2155.2,1.16097885]
[1772662902628,25.87288479,2158.3,2155.8,1.26454425]
[1772662902629,0.32553154,2156.0,2155.8,1.26454425]
[1772662902829,0.32553154,2156.0,2155.2,1.16097885]
[1772662902830,0.32553154,2156.0,2155.6,1.26454425]
[1772662903031,1.61709998,2156.0,2155.6,1.26454425]
[1772662904136,1.61709998,2156.0,2155.7,1.1597161]
[1772662905343,0.32553154,2156.0,2155.8,1.26454425]
[1772662905858,0.32553154,2156.0,2155.7,1.1597161]
[1772662906033,1.61709998,2156.0,2155.7,1.1597161]
[1772662906554,1.61709998,2156.0,2155.6,4.236271]
[1772662906766,1.29156844,2155.9,2155.6,3.07654425]
[1772662906976,1.29156844,2155.9,2155.6,4.23630671]
[1772662908452,1.29156844,2155.9,2155.6,2.42430671]
[1772662908653,1.26638932,2156.6,2155.9,1.36558468]
[1772662908848,0.002,2156.7,2156.1,1.36558468]
[1772662909551,1.26838932,2156.7,2156.1,1.36558468]
[1772662910246,1.59192086,2156.6,2156.1,1.36558468]
[1772662910442,1.26638932,2156.5,2156.0,3.17858468]
[1772662910642,1.26638932,2156.5,2156.1,1.15950095]
[1772662910872,1.26638932,2156.5,2156.1,2.52508563]
[1772662911172,1.26638932,2156.5,2156.0,1.813]
[1772662911173,1.26638932,2156.4,2156.0,1.813]
[1772662911345,1.26838932,2156.2,2156.0,1.813]
[1772662913573,1.26838932,2156.2,2156.0,2.972516]
[1772662913574,0.00199981,2156.2,2156.0,2.972516]
[1772662913778,1.26638932,2156.5,2156.0,4.33810068]
[1772662914080,1.26638932,2156.5,2156.1,1.36558468]
[1772662915478,0.002,2156.7,2156.2,1.36558468]
[1772662916377,1.26838932,2156.7,2156.2,1.36558468]
[1772662916562,0.002,2156.7,2156.3,1.36558468]
[1772662916759,1.26838932,2156.7,2156.3,1.36558468]
[1772662916958,1.26638932,2156.6,2156.2,1.814]
[1772662917377,1.26638932,2156.6,2156.2,3.17958468]
[1772662917579,1.26638932,2156.6,2156.2,4.33901334]
[1772662918489,0.002,2156.7,2156.3,1.36558468]
[1772662919153,0.002,2156.9,2156.3,1.36558468]
[1772662919356,0.002,2157.1,2156.4,1.36558468]
[1772662919550,0.002,2157.3,2156.7,1.36558468]
[1772662919774,0.002,2157.3,2156.9,1.36558468]
[1772662921872,0.002,2157.3,2157.0,2.52460183]
[1772662922072,0.002,2157.3,2157.0,1.36558468]
[1772662923568,0.002,2157.1,2157.0,1.36558468]
[1772662923887,0.002,2157.3,2157.0,1.36558468]
[1772662924260,0.002,2157.3,2157.1,1.15896342]
[1772662924479,0.002,2157.3,2157.1,2.5245481]
[1772662926093,1.29645773,2157.7,2157.2,1.36558468]
[1772662926295,1.26638932,2157.6,2157.2,1.36558468]
[1772662926471,1.26638932,2157.6,2157.2,2.52444893]
[1772662928187,1.26638932,2157.5,2157.2,1.15886425]
[1772662928387,1.26638932,2157.5,2156.9,1.15904948]
[1772662929000,2.42519158,2157.4,2156.9,2.52463416]
[1772662929702,1.26638932,2157.3,2156.9,1.36558468]
[1772662930002,1.26638932,2157.3,2156.8,2.9740874]
[1772662930003,1.26638932,2157.3,2156.2,1.36558468]
[1772662930161,1.26638932,2157.3,2155.8,2.2056237]
[1772662930162,1.26638932,2157.3,2156.0,2.52511407]
[1772662930368,1.26638932,2157.3,2156.1,1.36558468]
[1772662930573,1.26638932,2157.5,2156.3,1.36558468]
[1772662930783,1.26638932,2157.5,2156.5,1.36558468]